Cogmind - Beta 13 @@@ ROGUE MODE // 2024.05.23 @ 12:56:44 Player: Crackrock_Steady Result: Destroyed by as-83230 with Assembled Rifle Performance ------------- Evolutions (0) 0 Regions Visited (2) 400 Robots Destroyed (11) 55 Value Destroyed (251) 251 Prototype IDs (0) 0 Alien Tech Used (0) 0 Bonus (0) 0 TOTAL SCORE: 706 Bonus ------- None Cogmind --------- Core Integrity 0/250 Matter 230/300 Energy 101/265 System Corruption 0% Temperature Warm (193) Movement Walking (260) Ox2 Location -10/Mines Parts ------- > --- POWER (1) -------- Improved Ion Engine > --- PROPULSION (2) --- Aluminum Leg > --- UTILITY (2) ------ Medium Storage Unit Seismic Detector > --- WEAPON (2) ------- Beam Cannon Grenade Launcher > --- INVENTORY (10) --- Improved Ion Engine Light Treads Light Treads Heat Sink Light Armor Plating Hacking Suite Beam Cannon Beam Cannon Assault Rifle Peak State ------------ > --- POWER ------------ Ion Engine > --- PROPULSION ------- Aluminum Leg Aluminum Leg > --- UTILITY ---------- Small Storage Unit Seismic Detector > --- WEAPON ----------- Beam Cannon Beam Cannon > --- INVENTORY -------- Ion Engine Ion Engine Light Treads Light Treads Hacking Suite Beam Cannon Assault Rifle Grenade Launcher [Rating: 8] Favorites ----------- Power Ion Engine Engine Ion Engine Propulsion Aluminum Leg Leg Aluminum Leg Utility Seismic Detector Device Seismic Detector Storage Small Storage Unit Weapon Beam Cannon Energy Gun Small Laser Energy Cannon Beam Cannon Ballistic Gun Assault Rifle Launcher Grenade Launcher Build | -11 -10 -10 ------- Run | Yrd Mat Min Slots Evolved . | . . . Power . | . . . Propulsion . | . . . Utility . | . . . Weapon . | . . . Parts Attached 14 | 7 3 4 Power 3 | 1 . 2 Engine 3 | 1 . 2 Core . | . . . Reactor . | . . . Propulsion 3 | 2 . 1 Treads . | . . . Leg 3 | 2 . 1 Wheel . | . . . Hover . | . . . Flight . | . . . Utility 3 | 2 1 . Device 1 | 1 . . Storage 2 | 1 1 . Processor . | . . . Hackware . | . . . Protection . | . . . Artifact . | . . . Weapon 5 | 2 2 1 Energy Gun 1 | 1 . . Energy Cannon 2 | . 2 . Ballistic Gun 1 | 1 . . Ballistic Cannon . | . . . Launcher 1 | . . 1 Special Weapon . | . . . Impact Weapon . | . . . Slashing Weapon . | . . . Piercing Weapon . | . . . Special Melee Weapon . | . . . Unidentified Prototypes . | . . . Parts Lost 2 | . . 2 Power 1 | . . 1 Propulsion 1 | . . 1 Utility . | . . . Weapon . | . . . Highest Loss Streak 2 | . . 2 To Critical Strikes . | . . . Average Slot Usage (%) 99 | . 100 98 Engine 13 | . 14 13 Leg 27 | . 28 27 Device 14 | . 14 14 Storage 14 | . 14 14 Energy Gun 1 | . 2 . Energy Cannon 24 | . 22 26 Ballistic Gun 1 | . 2 . Naked Turns . | . . . Heaviest Build 22 | 14 22 22 Greatest Support 20 | 20 20 20 Greatest Overweight (x) 1 | . 1 1 Average Overweight (x) . | . . 1 Largest Inventory Capacity 10 | 8 10 10 Average Capacity 8 | 7 8 10 Most Carried 10 | 5 8 10 Average Carried 7 | 3 7 9 Final Capacity 10 | 8 10 10 Final Carried 9 | 4 8 9 Class Distribution -------------------- 100% | Mutant Dominant Class ---------------- Mutant | -10/Materials Mutant | -10/Mines Resources | -11 -10 -10 ----------- Run | Yrd Mat Min Matter Collected 347 | 297 20 30 Remotely . | . . . Salvage Created 421 | 97 122 202 Parts 32 | 11 9 12 Haulers Intercepted 1 | . 1 . Recyclers Shooed 1 | 1 . . Parts Field Recycled . | . . . Retrieved Matter . | . . . Parts Self-Destructed . | . . . Prevented . | . . . Kills | -11 -10 -10 ------- Run | Yrd Mat Min Combat Hostiles Destroyed 15 | . 1 14 Cannons 5 | . 1 4 AOE 9 | . . 9 Classes Destroyed 6 | 1 3 2 Tunneler 4 | 4 . . Hauler 1 | . 1 . Operator 1 | . 1 . Grunt 3 | . 1 2 Sentry 2 | . . 2 Assembled 10 | . . 10 Best Kill Streak 10 | 3 1 10 Combat Bots Only 10 | . 1 10 Max Kills in Single Turn 4 | 2 1 4 Gunslinging . | . . . Exploded 4 | . . 4 Melee . | . . . Uniques/NPCs Destroyed . | . . . Combat | -11 -10 -10 -------- Run | Yrd Mat Min Hostile Shots Fired 57 | . 1 56 Missed 13 | . . 13 Damage Taken 767 | . 11 756 Core 256 | . . 256 Absorbed by Shields . | . . . Core Remaining (%) 100 | 100 . . Volleys Fired 33 | 9 8 16 Largest 2 | 2 2 2 Hottest 120 | 60 120 120 Shots Fired 66 | 18 16 32 Gun 18 | 18 . . Cannon 42 | . 16 26 Launcher 6 | . . 6 Special . | . . . Kinetic 9 | 9 . . Thermal 51 | 9 16 26 Explosive 6 | . . 6 Electromagnetic . | . . . Robot Hit Streak 11 | 2 2 11 Robot Miss Streak 4 | 4 4 4 Penetration Max . | . . . Secondary Targets . | . . . Shots Hit Robots 30 | 7 6 17 Core Hits 40 | 5 3 32 Critical Kills . | . . . Critical Parts Destroyed . | . . . Critical Strikes . | . . . Melee Attacks . | . . . Impact . | . . . Slashing . | . . . Piercing . | . . . Sneak Attacks . | . . . Combat Hostiles . | . . . Follow-up Attacks . | . . . Damage Inflicted 1444 | 98 105 1241 Guns 98 | 98 . . Cannons 460 | . 105 355 Explosions 886 | . . 886 Melee . | . . . Ramming . | . . . Kinetic 54 | 54 . . Thermal 504 | 44 105 355 Explosive 886 | . . 886 Electromagnetic . | . . . Impact . | . . . Slashing . | . . . Piercing . | . . . Highest Corruption . | . . . Average Corruption . | . . . Corruption Purged . | . . . Corruption Blocked . | . . . Overload Shots . | . . . Overflow Damage 9 | . . 9 Projectiles . | . . . Explosions 9 | . . 9 Melee . | . . . Knockbacks . | . . . Impact . | . . . Kinetic . | . . . Secondary . | . . . Self-Inflicted Damage 77 | . . 77 Shots 3 | . . 3 Rammed . | . . . Targets Rammed . | . . . Kicked . | . . . Crushed . | . . . Highest Temperature 449 | . 142 449 Average Temperature 137 | . 61 182 Received Heat Transfer 171 | . 6 165 Effects 2 | . . 2 Shutdowns 1 | . . 1 Damage (minor) 1 | . . 1 Siege Activations . | . . . Robots Corrupted . | . . . Combat Hostiles . | . . . Parts Fried . | . . . Impact Corruptions . | . . . Robots Melted 1 | . . 1 Combat Hostiles 1 | . . 1 Parts Melted 1 | . . 1 Heat Transferred 1062 | 100 222 740 Parts Sabotaged . | . . . Parts Stolen . | . . . Parts Stripped . | . . . Power Chain Reactions . | . . . Alert | -11 -10 -10 ------- Run | Yrd Mat Min Peak Influence 174 | 20 91 174 Initial 35 | . 13 35 Average 59 | 8 40 119 Maximum Alert Level . | . . . Low Security (%) 100 | 100 100 100 Level 1 . | . . . Level 2 . | . . . Level 3 . | . . . Level 4 . | . . . Level 5 . | . . . High Security . | . . . Max Security . | . . . Squads Dispatched 1 | . 1 . Investigation . | . . . Extermination . | . . . Reinforcement 1 | . 1 . Assault . | . . . Garrison . | . . . Intercept . | . . . Searches Triggered . | . . . Construction Impeded . | . . . Haulers Reinforced . | . . . Active Scanning Responses . | . . . Cargo Convoy Interrupts . | . . . Stealth | -11 -10 -10 --------- Run | Yrd Mat Min Distress Signals . | . . . Communications Jammed . | . . . Distress Signals . | . . . Times Spotted 24 | . 4 20 Peak Tracking Total 14 | . 2 14 Tactical Retreats 1 | . . 1 Traps | -11 -10 -10 ------- Run | Yrd Mat Min Traps Triggered . | . . . Indirectly . | . . . Trap Hack Attempts . | . . . Triggered . | . . . Disarmed . | . . . Reprogrammed 2 | . 2 . Reused . | . . . Traps Extracted . | . . . Installed . | . . . Triggered . | . . . Machines | -11 -10 -10 ---------- Run | Yrd Mat Min Machines Disabled 1 | . 1 . Max in Single Turn 1 | . 1 . Machines Repaired . | . . . Machines Dismantled . | . . . Machines Sabotaged . | . . . Overloaded Fab Kills . | . . . Hacking | -11 -10 -10 --------- Run | Yrd Mat Min Machines Accessed 2 | . 2 . Terminals 2 | . 2 . Fabricators . | . . . Repair Stations . | . . . Recycling Units . | . . . Scanalyzers . | . . . Garrison Access . | . . . Total Hacks 6 | . 6 . Successful 2 | . 2 . Failed 4 | . 4 . Catastrophic . | . . . Database Lockouts . | . . . Manual 5 | . 5 . Terminals 6 | . 6 . Fabricators . | . . . Repair Stations . | . . . Recycling Units . | . . . Scanalyzers . | . . . Garrison Access . | . . . Terminal Hacks 2 | . 2 . Robot Analysis 1 | . 1 . Reprogram Traps 1 | . 1 . Fabricator Hacks . | . . . Repair Station Hacks . | . . . Recycling Unit Hacks . | . . . Scanalyzer . | . . . Garrison Access Hacks . | . . . Unauthorized Hacks . | . . . Terminals . | . . . Fabricators . | . . . Repair Stations . | . . . Recycling Units . | . . . Scanalyzers . | . . . Garrison Access . | . . . Data Cores Recovered . | . . . Used . | . . . Hacking Detections 1 | . 1 . Full Trace Events . | . . . Feedback Events . | . . . Feedback Blocked . | . . . Robot Schematics Acquired . | . . . Robots Built . | . . . Authchips . | . . . Time . | . . . Total Robot Build Rating . | . . . Part Schematics Acquired . | . . . Parts Built . | . . . Authchips . | . . . Time . | . . . Total Part Build Rating . | . . . Parts Repaired . | . . . Time . | . . . Parts Recycled . | . . . Recycled Matter . | . . . Retrieved Matter . | . . . Retrieved Components . | . . . Parts Scanalyzed . | . . . Part Schematics Acquired . | . . . Parts Damaged . | . . . Bothacking | -11 -10 -10 ------------ Run | Yrd Mat Min Used RIF Installer . | . . . Robots Hacked . | . . . Non-combat . | . . . Combat . | . . . Robot Hacks Applied . | . . . Relay Couplers Released . | . . . Fabnet Peak Effective % . | . . . Robots Rewired . | . . . Allies Hacked . | . . . Hacks Repelled . | . . . Allies | -11 -10 -10 -------- Run | Yrd Mat Min Total Allies . | . . . Largest Group . | . . . Highest-Rated Group . | . . . Highest-Rated Ally . | . . . Total Orders . | . . . Ally Attacks . | . . . Total Damage . | . . . Kills . | . . . Allies Corrupted . | . . . Allies Melted . | . . . Intel | -11 -10 -10 ------- Run | Yrd Mat Min Robot Analysis Total 1 | . 1 . Derelict Logs Recovered . | . . . Drone Launches . | . . . Drone Recoveries . | . . . Exploration | -11 -10 -10 ------------- Run | Yrd Mat Min Turns Passed 502 | 114 221 167 Spaces Moved 270 | 69 145 56 Core 15 | 15 . . Treads . | . . . Legs 255 | 54 145 56 Wheels . | . . . Hover . | . . . Flight . | . . . Fastest Speed 50 | 50 120 190 Average Speed 135 | 104 128 190 Slowest Speed 190 | 120 190 190 Overloaded Moves . | . . . Propulsion Burnouts . | . . . Robots Hopped . | . . . Cave-ins Triggered . | . . . Exploration Rate (%) 15 | 3 23 19 Regions Visited 2 Branch Regions 1 Pre-discovered Areas . | . . . Known Exits Taken . | . . . Unknown Exits Taken 2 | 1 1 . Scrap Searched . | . . . Spaces Dug . | . . . Terrain Destroyed 51 | . . 51 Melee . | . . . Projectile . | . . . AOE 51 | . . 51 Terrain Rammed . | . . . Walls Destroyed . | . . . Machines Disabled . | . . . Actions | -11 -10 -10 --------- Run | Yrd Mat Min Total 340 | 90 164 86 Wait . | . . . Move 268 | 68 144 56 Hop . | . . . Pick Up 18 | 6 6 6 Fast Attach 5 | 5 . . Attach 3 | 2 . 1 Detach . | . . . Swap 6 | . 3 3 Drop 7 | . 3 4 Fire 33 | 9 8 16 Melee . | . . . Ram . | . . . Kick . | . . . Crush . | . . . Escape Stasis . | . . . Rewire . | . . . Trap . | . . . Miscellaneous . | . . . Route ------- -11/Scrapyard -10/Materials -10/Mines History --------- Turn | Location | Event 21 | -11/Scrapyard | Discovered new exit (range 15) 115 | -11/Scrapyard | Entered Materials 248 | -10/Materials | Discovered new exit (range 16) 323 | -10/Materials | Build established: Mutant 336 | -10/Materials | Entered Mines 475 | -10/Mines | Assembled infested the area 487 | -10/Mines | Core integrity fell below 50% 500 | -10/Mines | Core integrity fell below 20% 503 | -10/Mines | Destroyed by as-83230 with Assembled Rifle Last Messages --------------- corrupted. 00491_ Destroyed Asb. Hover Unit. 00492_ The unstable cave ceiling collapses. 00493_ Aluminum Leg destroyed. 00494_ The unstable cave ceiling collapses. 00494_ U-05 Engineer lays Concrete. 00494_ as-82705 destroyed. 00494_ Destroyed Asb. F-torch. 00495_ Knocked back. 00495_ U-05 Engineer lays Concrete. 00496_ Ion Engine destroyed. 00496_ U-05 Engineer builds a Wall. 00497_ The unstable cave ceiling collapses. 00497_ as-52929 destroyed. 00497_ Destroyed Asb. Hover Unit. 00501_ U-05 Engineer destroyed. 00501_ as-81200 destroyed. 00501_ Destroyed Asb. Hover Unit. 00501_ as-37106 destroyed. 00501_ as-90455 destroyed. Map ----- +----------------------------------------------------+ | ????????????????????????????????????????????????? | | ????????????????????????????????????????????????? | | ????????????????????????????????????????????????? | | ????????????????????????????????????????????????? | | ????????????????????????????????????????????????? | | ????????????????????????????????????????????????? | | ????????????????????????????????????????????????? | | ????????????????????????????????????????????????? | | ????????????????????????????????????????????????? | | ????????????????????????????????????????????????? | | ????????????????????????????????????????????????? | | ????????????????????????????????????????????????? | | ????????????????????????????????????????????????? | | ????????????????????????????????????????????????? | | ????????????????????????????????????????????????? | | ????????????????????????????????????????????????? | | ????????????????????????????????????????????????? | | ??????????????????????????????????#?????????????? | | ????????????????????????????##### ###???????????? | | ??????????????????????????## #???????????? | | ????????????????????????## #???????????? | | ????????????????????????# #???????????? | | ??????????############?## aaa ##???????????? | | ?????????##" ## ### #???????????? | | ?????????#""= # # % #???????????? | | ?????????#[!*!+% # @a # ##????????????? | | ?????????#[/!*+ ! ## #????????????????? | | ?????????#"" =# =#???????????????????? | | ?????????##"%## = #???????????????????? | | ????????######## r## ##???????????????????? | | ????????? #?# ###### ###??????????????????? | | ?????????# #?# ##????# ??????????????????? | | ????????## #### ##?????# ### ????????????????? | | ????????# ## #????### #????????????????????? | | ????????# ## #?### ##???????????????????? | | ????????# ## ### #???????????????????? | | ????????# [ #???????????????????? | | ????????#*% #???????????????????? | | ????????# % ##### #??????????????????? | | ????????#######??# #??????????????????? | | ???????????????? #??????????????????? | | ??????????????? ##??????????????????? | | ?????????????? ## #???????????????????? | | ?????????????# #?### #??????????????????? | | ????????????# ?????# ?????????????????? | | ????????????# ?????? ????????????????? | | ????????????# ?????? ???????????????? | | ????????????## ?????? ## ???????????????? | | ?????????????## ???????? ##?# ?????????????????? | | ??????????????###????????##?????????????????????? | +----------------------------------------------------+ Best States ------------- Heat Dissipation 25 Energy Generation 10 Energy Capacity 250 Matter Stores 300 Matter Capacity 300 Sight Range 16 Terrain Scan Density 10 Evasion (%) 55 Item Schematics ----------------- None Robot Schematics ------------------ None Fabricated ------------ Nothing Alien Tech Used ----------------- None Achievements -------------- None Challenges ------------ None Game ------ Seed GravitonMicrowarpEngine Manual? 0 Play Time 00:08:37 Cumulative 20.1 hours Start 2024.05.23 @ 12:49:19 End 2024.05.23 @ 12:56:44 Sessions 5 Manual Loads 0 Difficulty Rogue Special Mode None Game No. 46 Rogue 46 Adventurer 0 Explorer 0 Win Type - Total 0 Types 0/0/0/0/0/0/0/0/0 Lore% 25 Gallery% 22 Achievement% 21 Wizard Run 0 Options --------- Layout 1 ASCII 0 Keyboard 0 Movement Arrows Keybinds 0 Fullscreen 2 Font 24/Smallcaps Map View 50x35 Zoom Use 0% Tactical HUD 1 Map Filters NONE Filters NONE Steam 1 RUN: b4325355-dfe6-4bf8-b5e5-15fc42351e12